[Event "GER-ch Youth U12M 2018"]
[Site "Willingen"]
[Date "2018.05.20"]
[Round "2"]
[White "Tham, Nam"]
[Black "Kort, Felix"]
[Result "1-0"]
[ECO "C54"]
[WhiteElo "1866"]
[BlackElo "1672"]
[Annotator "NA"]
[PlyCount "63"]
[EventDate "2018.05.19"]
[EventType "swiss"]
[EventCountry "GER"]
[SourceTitle "playchess.com"]
[Source "ChessBase"]
[SourceQuality "1"]
[TimeControl "40/4500+30:900+30"]

1. e4 {[%emt 0:00:00]} e5 {[%emt 0:00:07]} 2. Nf3 {[%emt 0:00:00]} Nc6 {[%emt 0:00:08]} 3. Bc4 {[%emt 0:00:00]} Bc5 {[%emt 0:00:07]} 4. c3 {[%emt 0:00:00]} Nf6 {[%emt 0:00:11]} 5. d3 {[%emt 0:00:00]} a6 {[%emt 0:00:28]} 6. Nbd2 {[%emt 0:00:00]} d6 {[%emt 0:00:10]} 7. Bb3 {[%emt 0:00:06]} Ba7 {[%emt 0:00:11]} 8. h3 {[%emt 0:00:05]} O-O {[%emt 0:00:44]} 9. Nf1 {[%emt 0:00:05]} Ne7 {[%emt 0:00:21]} 10. Ng3 {[%emt 0:00:08]} Ng6 {[%emt 0:00:16]} 11. O-O {[%emt 0:00:17]} Re8 {[%emt 0:00:28]} 12. Re1 {[%emt 0:01:26]} Be6 {[%emt 0:01:55]} 13. Nh2 {[%emt 0:02:48]} c6 {[%emt 0:13:55]} 14. Ng4 {[%emt 0:01:10]} Nxg4 {[%emt 0:02:55]} 15. hxg4 {[%emt 0:00:09]} Qh4 {[%emt 0:05:01]} 16. Bxe6 {[%emt 0:02:13]} fxe6 {[%emt 0:08:49]} 17. Be3 {[%emt 0:00:54]} Bxe3 {[%emt 0:00:45]} 18. Rxe3 {[%emt 0:00:10]} Rf8 {[%emt 0:02:57]} 19. d4 {[%emt 0:08:41]} Rf7 {[%emt 0:16:57]} 20. d5 {[%emt 0:02:29]} cxd5 {[%emt 0:05:08]} 21. exd5 {[%emt 0:00:32]} exd5 {[%emt 0:00:14]} 22. Nf5 {[%emt 0:00:44]} Qg5 {[%emt 0:01:29]} 23. Nxd6 {[%emt 0:04:33]} Rd7 {[%emt 0:01:56]} 24. Qxd5+ {[%emt 0:08:21]} Kf8 {[%emt 0:03:05]} 25. Rf3+ {[%emt 0:05:31]} Nf4 {[%emt 0:01:05]} 26. Re1 {[%emt 0:08:03]} Qxg4 {[%emt 0:05:11]} 27. g3 {[%emt 0:00:29]} Re8 {[%emt 0:04:22]} 28. Rxe5 {[%emt 0:01:27]} Rxe5 {[%emt 0:01:37]} 29. Qxe5 {[%emt 0:00:54]} Rxd6 {[%emt 0:01:48]} 30. Qxd6+ {[%emt 0:00:19]} Ke8 {[%emt 0:00:16]} 31. Rxf4 {[%emt 0:00:25]} Qd1+ {[%emt 0:01:37]} 32. Qxd1 {[%emt 0:00:08]} 1-0

[Event "GER-ch Youth U12M 2018"]
[Site "Willingen"]
[Date "2018.05.20"]
[Round "2"]
[White "Eilenberg, Jonas"]
[Black "Weidenhoefer, Max"]
[Result "1-0"]
[ECO "D09"]
[WhiteElo "1852"]
[BlackElo "1709"]
[Annotator "NA"]
[PlyCount "51"]
[EventDate "2018.05.19"]
[EventType "swiss"]
[EventCountry "GER"]
[SourceTitle "playchess.com"]
[Source "ChessBase"]
[SourceQuality "1"]
[TimeControl "40/4500+30:900+30"]

1. d4 {[%emt 0:00:00]} d5 {[%emt 0:00:06]} 2. c4 {[%emt 0:00:00]} e5 {[%emt 0:00:07]} 3. dxe5 {[%emt 0:00:02]} d4 {[%emt 0:00:09]} 4. Nf3 {[%emt 0:00:31]} Nc6 {[%emt 0:00:07]} 5. g3 {[%emt 0:00:05]} Be6 {[%emt 0:00:41]} 6. Nbd2 {[%emt 0:01:41]} Qd7 {[%emt 0:05:00]} 7. Bg2 {[%emt 0:00:38]} O-O-O {[%emt 0:01:46]} 8. O-O {[%emt 0:00:38]} Bh3 {[%emt 0:01:53]} 9. a3 {[%emt 0:04:20]} h5 {[%emt 0:03:04]} 10. b4 {[%emt 0:01:42]} h4 {[%emt 0:03:01]} 11. b5 {[%emt 0:01:49]} Na5 {[%emt 0:06:34]} 12. e6 {[%emt 0:04:28]} Bxe6 {[%emt 0:02:21]} 13. Ne5 {[%emt 0:01:03]} Qd6 {[%emt 0:08:37]} 14. f4 {[%emt 0:00:30]} hxg3 {[%emt 0:03:44]} 15. hxg3 {[%emt 0:00:21]} Nf6 {[%emt 0:01:49]} 16. Qc2 {[%emt 0:07:17]} d3 {[%emt 0:06:47]} 17. Nxd3 {[%emt 0:00:30]} Qd4+ {[%emt 0:01:34]} 18. Nf2 {[%emt 0:00:05]} Nxc4 {[%emt 0:04:44]} 19. Nxc4 {[%emt 0:00:38]} Bxc4 20. Bb2 {[%emt 0:00:36]} Qd2 {[%emt 0:23:49]} 21. Qxc4 {[%emt 0:01:04]} Qxb2 {[%emt 0:00:11]} 22. Rfc1 {[%emt 0:02:03]} Bd6 {[%emt 0:00:39]} 23. Ra2 {[%emt 0:01:24]} Qxc1+ {[%emt 0:06:07]} 24. Qxc1 {[%emt 0:00:04]} Nh5 {[%emt 0:00:38]} 25. Qc3 {[%emt 0:00:57]} Rd7 {[%emt 0:01:50]} 26. Bh3 1-0

[Event "GER-ch Youth U12M 2018"]
[Site "Willingen"]
[Date "2018.05.20"]
[Round "2"]
[White "Haack, Kevin"]
[Black "Gressler, Christian"]
[Result "1-0"]
[ECO "A18"]
[WhiteElo "1846"]
[BlackElo "1290"]
[Annotator "NA"]
[PlyCount "79"]
[EventDate "2018.05.19"]
[EventType "swiss"]
[EventCountry "GER"]
[SourceTitle "playchess.com"]
[Source "ChessBase"]
[SourceQuality "1"]
[TimeControl "40/4500+30:900+30"]

1. c4 {[%emt 0:00:00]} e6 {[%emt 0:00:50]} 2. Nc3 {[%emt 0:00:00]} Nf6 {[%emt 0:00:10]} 3. e4 {[%emt 0:00:00]} Nc6 {[%emt 0:00:30]} 4. Nf3 {[%emt 0:00:40]} d6 {[%emt 0:00:23]} 5. d4 {[%emt 0:01:03]} e5 {[%emt 0:00:44]} 6. Bg5 {[%emt 0:04:52]} Be7 {[%emt 0:01:10]} 7. d5 {[%emt 0:01:38]} Nb8 {[%emt 0:05:50]} 8. Qd2 {[%emt 0:03:57]} Bg4 {[%emt 0:03:27]} 9. Be2 {[%emt 0:02:17]} Bxf3 {[%emt 0:02:46]} 10. gxf3 {[%emt 0:06:08]} Nbd7 {[%emt 0:02:50]} 11. Rg1 {[%emt 0:01:25]} Rg8 {[%emt 0:02:49]} 12. f4 {[%emt 0:02:56]} exf4 {[%emt 0:02:26]} 13. Bxf4 {[%emt 0:02:06]} h6 {[%emt 0:02:56]} 14. Be3 {[%emt 0:02:38]} Nc5 {[%emt 0:01:57]} 15. Bxc5 {[%emt 0:02:14]} dxc5 {[%emt 0:02:02]} 16. e5 {[%emt 0:01:58]} Nd7 {[%emt 0:00:59]} 17. Qe3 {[%emt 0:02:00]} Bg5 {[%emt 0:01:59]} 18. f4 {[%emt 0:01:01]} Bh4+ {[%emt 0:00:24]} 19. Kd2 {[%emt 0:00:28]} Qe7 {[%emt 0:01:06]} 20. d6 {[%emt 0:06:44]} Qd8 {[%emt 0:02:26]} 21. Nd5 {[%emt 0:08:15]} Kf8 {[%emt 0:06:16]} 22. Nxc7 {[%emt 0:02:09]} Rc8 {[%emt 0:01:28]} 23. e6 {[%emt 0:01:35]} Ne5 {[%emt 0:03:42]} 24. Kc2 {[%emt 0:04:09]} Qxd6 {[%emt 0:00:50]} 25. fxe5 {[%emt 0:02:28]} Qxc7 {[%emt 0:00:25]} 26. exf7 {[%emt 0:01:06]} Rh8 {[%emt 0:01:25]} 27. Raf1 {[%emt 0:02:09]} Bg5 {[%emt 0:01:48]} 28. Qc3 {[%emt 0:01:52]} Qd7 {[%emt 0:01:43]} 29. e6 {[%emt 0:02:47]} Qxe6 {[%emt 0:04:37]} 30. Bd3 {[%emt 0:02:19]} Rc6 {[%emt 0:03:32]} 31. Qa5 {[%emt 0:02:38]} a6 {[%emt 0:04:45]} 32. Re1 {[%emt 0:04:06]} Qxf7 {[%emt 0:01:16]} 33. Rxg5 {[%emt 0:01:19]} b6 {[%emt 0:01:05]} 34. Qxa6 {[%emt 0:00:49]} Re6 {[%emt 0:08:44]} 35. Qc8+ {[%emt 0:02:05]} Re8 {[%emt 0:00:21]} 36. Rxe8+ {[%emt 0:00:21]} Qxe8 {[%emt 0:00:10]} 37. Rf5+ {[%emt 0:00:18]} Ke7 {[%emt 0:00:17]} 38. Re5+ {[%emt 0:00:06]} Kf7 {[%emt 0:00:13]} 39. Qf5+ {[%emt 0:00:20]} Kg8 {[%emt 0:00:11]} 40. Rxe8# {[%emt 0:00:02]} 1-0

[Event "GER-ch Youth U12M 2018"]
[Site "Willingen"]
[Date "2018.05.20"]
[Round "2"]
[White "Schubert, Nikita"]
[Black "Schwartz, Oliver"]
[Result "1-0"]
[ECO "B33"]
[WhiteElo "1802"]
[BlackElo "1651"]
[Annotator "NA"]
[PlyCount "143"]
[EventDate "2018.05.19"]
[EventType "swiss"]
[EventCountry "GER"]
[SourceTitle "playchess.com"]
[Source "ChessBase"]
[SourceQuality "1"]
[TimeControl "40/4500+30:900+30"]

1. e4 {[%emt 0:00:00]} c5 {[%emt 0:00:04]} 2. Nf3 {[%emt 0:00:00]} Nc6 {[%emt 0:00:03]} 3. d4 {[%emt 0:00:00]} cxd4 {[%emt 0:00:04]} 4. Nxd4 {[%emt 0:00:00]} Nf6 {[%emt 0:00:07]} 5. Nc3 {[%emt 0:06:59]} e5 {[%emt 0:00:37]} 6. Ndb5 {[%emt 0:04:29]} d6 {[%emt 0:00:12]} 7. Bg5 {[%emt 0:01:59]} a6 {[%emt 0:00:22]} 8. Na3 {[%emt 0:00:27]} b5 {[%emt 0:00:07]} 9. Nd5 {[%emt 0:03:12]} Be7 {[%emt 0:00:11]} 10. Bxf6 {[%emt 0:01:51]} Bxf6 {[%emt 0:00:06]} 11. c4 {[%emt 0:02:36]} bxc4 {[%emt 0:01:44]} 12. Nxc4 {[%emt 0:01:16]} Nd4 {[%emt 0:02:57]} 13. Bd3 {[%emt 0:06:02]} O-O {[%emt 0:01:14]} 14. Ncb6 {[%emt 0:07:38]} Rb8 {[%emt 0:01:47]} 15. Nxc8 {[%emt 0:01:11]} Rxc8 {[%emt 0:07:16]} 16. O-O {[%emt 0:06:09]} a5 {[%emt 0:01:25]} 17. Qa4 {[%emt 0:02:38]} Bg5 {[%emt 0:03:27]} 18. a3 {[%emt 0:06:52]} Qe8 {[%emt 0:14:34]} 19. Qxe8 {[%emt 0:14:36]} Rfxe8 {[%emt 0:00:16]} 20. Rfd1 {[%emt 0:01:41]} Nb3 {[%emt 0:05:25]} 21. Rab1 {[%emt 0:01:22]} Nd2 {[%emt 0:07:46]} 22. Ra1 {[%emt 0:01:31]} Nb3 {[%emt 0:03:04]} 23. Rab1 {[%emt 0:00:34]} Nd2 {[%emt 0:00:35]} 24. f4 {[%emt 0:02:20]} Bxf4 {[%emt 0:03:08]} 25. Nxf4 {[%emt 0:00:11]} Nxb1 {[%emt 0:00:09]} 26. Nd5 {[%emt 0:00:36]} Nxa3 {[%emt 0:01:29]} 27. bxa3 {[%emt 0:00:00]} Rb8 {[%emt 0:02:34]} 28. a4 {[%emt 0:01:34]} Rb2 {[%emt 0:02:40]} 29. Bb5 {[%emt 0:00:19]} Re6 {[%emt 0:01:48]} 30. Rc1 {[%emt 0:01:03]} h6 {[%emt 0:00:51]} 31. Bd7 {[%emt 0:00:11]} Ra2 {[%emt 0:04:33]} 32. h3 {[%emt 0:06:28]} Ra3 {[%emt 0:02:07]} 33. Rc4 {[%emt 0:01:13]} Rd3 {[%emt 0:00:59]} 34. Kf2 {[%emt 0:01:59]} Rxd5 {[%emt 0:01:00]} 35. exd5 {[%emt 0:01:10]} Rf6+ {[%emt 0:00:33]} 36. Ke3 {[%emt 0:00:48]} Kf8 {[%emt 0:01:38]} 37. Bb5 {[%emt 0:00:51]} Rg6 {[%emt 0:01:38]} 38. Kf2 {[%emt 0:01:05]} Rf6+ {[%emt 0:01:15]} 39. Kg1 {[%emt 0:00:41]} Rf5 {[%emt 0:01:14]} 40. Rc7 {[%emt 0:00:23]} e4 {[%emt 0:19:58]} 41. Ra7 {[%emt 0:09:55]} Rxd5 {[%emt 0:00:00]} 42. Rxa5 {[%emt 0:00:32]} g5 {[%emt 0:00:00]} 43. Ra8+ {[%emt 0:00:49]} Kg7 {[%emt 0:00:00]} 44. Re8 {[%emt 0:00:50]} f5 {[%emt 0:00:00]} 45. Kf2 {[%emt 0:01:32]} Kf7 {[%emt 0:00:00]} 46. Bc4 {[%emt 0:01:20]} Kxe8 {[%emt 0:00:00]} 47. Bxd5 {[%emt 0:00:01]} Kd7 {[%emt 0:00:00]} 48. Ke3 {[%emt 0:00:06]} Kc7 {[%emt 0:00:00]} 49. Be6 {[%emt 0:01:10]} f4+ {[%emt 0:00:00]} 50. Kxe4 {[%emt 0:00:33]} Kb6 {[%emt 0:00:00]} 51. Kd5 {[%emt 0:00:40]} Ka5 {[%emt 0:00:00]} 52. Bd7 {[%emt 0:00:33]} h5 {[%emt 0:00:00]} 53. Kxd6 {[%emt 0:00:16]} h4 {[%emt 0:00:00]} 54. Ke5 {[%emt 0:00:33]} g4 {[%emt 0:00:00]} 55. Bxg4 {[%emt 0:00:11]} Kxa4 {[%emt 0:00:00]} 56. Kxf4 {[%emt 0:00:04]} Kb5 {[%emt 0:00:00]} 57. Kg5 {[%emt 0:00:17]} Kc5 {[%emt 0:00:00]} 58. Kxh4 {[%emt 0:00:06]} Kd6 {[%emt 0:00:00]} 59. Kg5 {[%emt 0:00:12]} Ke7 {[%emt 0:00:00]} 60. Kg6 {[%emt 0:00:18]} Kf8 {[%emt 0:00:00]} 61. Be6 {[%emt 0:00:12]} Ke7 {[%emt 0:00:00]} 62. Ba2 {[%emt 0:00:08]} Kd6 {[%emt 0:00:00]} 63. h4 {[%emt 0:00:09]} Ke5 {[%emt 0:00:00]} 64. h5 {[%emt 0:00:07]} Kf4 {[%emt 0:00:00]} 65. h6 {[%emt 0:00:05]} Kg3 {[%emt 0:00:00]} 66. h7 {[%emt 0:00:04]} Kf2 {[%emt 0:00:00]} 67. h8=Q {[%emt 0:00:06]} Kg3 {[%emt 0:00:00]} 68. Qh3+ {[%emt 0:00:28]} Kf4 {[%emt 0:00:00]} 69. Qf3+ {[%emt 0:00:16]} Ke5 {[%emt 0:00:00]} 70. Qf5+ {[%emt 0:00:25]} Kd4 {[%emt 0:00:00]} 71. Qe6 {[%emt 0:00:10]} Kc5 {[%emt 0:00:00]} 72. Qd7 {[%emt 0:00:05] Kd5} 1-0

[Event "GER-ch Youth U12M 2018"]
[Site "Willingen"]
[Date "2018.05.20"]
[Round "2"]
[White "Lutz, Adam"]
[Black "Bui, Bao Anh Le"]
[Result "1/2-1/2"]
[ECO "B98"]
[WhiteElo "1761"]
[BlackElo "1974"]
[Annotator "NA"]
[PlyCount "55"]
[EventDate "2018.05.19"]
[EventType "swiss"]
[EventCountry "GER"]
[SourceTitle "playchess.com"]
[Source "ChessBase"]
[SourceQuality "1"]
[TimeControl "40/4500+30:900+30"]

1. e4 {[%emt 0:00:00]} c5 {[%emt 0:00:04]} 2. Nf3 {[%emt 0:00:00]} d6 {[%emt 0:00:07]} 3. d4 {[%emt 0:00:00]} cxd4 {[%emt 0:00:03]} 4. Nxd4 {[%emt 0:00:00]} Nf6 {[%emt 0:00:05]} 5. Nc3 {[%emt 0:00:05]} a6 {[%emt 0:00:02]} 6. Bg5 {[%emt 0:00:14]} e6 {[%emt 0:02:10]} 7. f4 {[%emt 0:00:06]} Be7 {[%emt 0:00:08]} 8. Qf3 {[%emt 0:00:15]} Qc7 {[%emt 0:00:12]} 9. O-O-O {[%emt 0:00:12]} h6 {[%emt 0:01:10]} 10. Bh4 {[%emt 0:00:53]} Nbd7 {[%emt 0:01:43]} 11. Bd3 {[%emt 0:00:26]} b5 {[%emt 0:06:19]} 12. Nxe6 {[%emt 0:01:11]} fxe6 {[%emt 0:04:32]} 13. e5 {[%emt 0:00:10]} Bb7 {[%emt 0:26:05]} 14. Bg6+ {[%emt 0:00:17]} Kf8 {[%emt 0:08:50]} 15. Qh3 {[%emt 0:00:12]} Qc4 {[%emt 0:00:47]} 16. exf6 {[%emt 0:01:27]} Nxf6 {[%emt 0:02:51]} 17. Rhf1 {[%emt 0:04:32]} b4 {[%emt 0:18:05]} 18. Bd3 {[%emt 0:01:04]} Qc7 {[%emt 0:02:42]} 19. Bxf6 {[%emt 0:07:35]} Bxf6 {[%emt 0:00:20]} 20. Ne4 {[%emt 0:00:16]} Qe7 {[%emt 0:05:13]} 21. Rde1 {[%emt 0:02:23]} Bd5 {[%emt 0:03:35]} 22. g4 {[%emt 0:00:44]} Kg8 {[%emt 0:00:37]} 23. Kb1 {[%emt 0:01:07]} a5 {[%emt 0:00:43]} 24. Qg2 {[%emt 0:01:12]} a4 {[%emt 0:00:31]} 25. f5 {[%emt 0:00:14]} Be5 {[%emt 0:00:33]} 26. Qe2 {[%emt 0:03:38]} b3 {[%emt 0:00:29]} 27. Bc4 {[%emt 0:01:28]} bxa2+ {[%emt 0:00:17]} 28. Kxa2 1/2-1/2

[Event "GER-ch Youth U12M 2018"]
[Site "Willingen"]
[Date "2018.05.20"]
[Round "2"]
[White "Rössel, Gino"]
[Black "Metzdorf, Matteo"]
[Result "0-1"]
[ECO "C11"]
[WhiteElo "1705"]
[BlackElo "1832"]
[Annotator "NA"]
[PlyCount "60"]
[EventDate "2018.05.19"]
[EventType "swiss"]
[EventCountry "GER"]
[SourceTitle "playchess.com"]
[Source "ChessBase"]
[SourceQuality "1"]
[TimeControl "40/4500+30:900+30"]

1. e4 {[%emt 0:00:00]} e6 {[%emt 0:00:07]} 2. d4 {[%emt 0:00:00]} d5 {[%emt 0:00:07]} 3. Nc3 {[%emt 0:00:00]} Nf6 {[%emt 0:00:09]} 4. e5 {[%emt 0:00:00]} Nfd7 {[%emt 0:00:04]} 5. f4 {[%emt 0:00:10]} c5 {[%emt 0:00:09]} 6. Nf3 {[%emt 0:00:06]} Nc6 {[%emt 0:00:07]} 7. Be3 {[%emt 0:00:04]} a6 {[%emt 0:00:10]} 8. Be2 {[%emt 0:15:18]} b5 {[%emt 0:00:54]} 9. Qd2 {[%emt 0:02:20]} Qb6 {[%emt 0:01:16]} 10. O-O {[%emt 0:02:30]} Be7 11. g4 {[%emt 0:02:23]} f6 {[%emt 0:11:04]} 12. exf6 {[%emt 0:10:04]} Nxf6 {[%emt 0:01:15]} 13. g5 {[%emt 0:06:10]} Ne4 {[%emt 0:08:58]} 14. Qd1 {[%emt 0:09:16]} cxd4 {[%emt 0:11:40]} 15. Nxd4 {[%emt 0:02:34]} Bc5 {[%emt 0:18:16]} 16. Nxe4 {[%emt 0:02:41]} Bxd4 {[%emt 0:01:39]} 17. Bxd4 {[%emt 0:02:55]} Qxd4+ {[%emt 0:04:42]} 18. Qxd4 {[%emt 0:04:05]} Nxd4 {[%emt 0:00:04]} 19. Bh5+ {[%emt 0:04:03]} Ke7 {[%emt 0:02:44]} 20. c3 {[%emt 0:01:06]} Nf5 {[%emt 0:08:56]} 21. Nd2 {[%emt 0:05:05]} Bb7 {[%emt 0:00:41]} 22. Nf3 {[%emt 0:01:07]} g6 {[%emt 0:00:32]} 23. Bg4 {[%emt 0:03:43]} Ne3 {[%emt 0:00:16]} 24. Bxe6 {[%emt 0:03:38]} Nxf1 {[%emt 0:00:54]} 25. Re1 {[%emt 0:00:48]} Kd6 {[%emt 0:01:05]} 26. Kxf1 {[%emt 0:03:57]} Rhf8 {[%emt 0:02:34]} 27. f5 {[%emt 0:00:15]} gxf5 {[%emt 0:00:54]} 28. Nd4 {[%emt 0:00:38]} Rae8 {[%emt 0:03:56]} 29. Bxf5 {[%emt 0:02:40]} Re5 {[%emt 0:00:55]} 30. Rxe5 {[%emt 0:01:50]} Kxe5 0-1

[Event "GER-ch Youth U12M 2018"]
[Site "Willingen"]
[Date "2018.05.20"]
[Round "2"]
[White "Hänselmann, Hendrik"]
[Black "Foerster-Yialamas, Lucas"]
[Result "0-1"]
[ECO "B90"]
[WhiteElo "1692"]
[BlackElo "1924"]
[Annotator "NA"]
[PlyCount "102"]
[EventDate "2018.05.19"]
[EventType "swiss"]
[EventCountry "GER"]
[SourceTitle "playchess.com"]
[Source "ChessBase"]
[SourceQuality "1"]
[TimeControl "40/4500+30:900+30"]

1. e4 {[%emt 0:00:00]} c5 {[%emt 0:00:01]} 2. Nf3 {[%emt 0:00:00]} d6 {[%emt 0:00:01]} 3. d4 {[%emt 0:00:00]} cxd4 {[%emt 0:00:01]} 4. Nxd4 {[%emt 0:00:00]} Nf6 {[%emt 0:00:04]} 5. Nc3 {[%emt 0:00:02]} a6 {[%emt 0:00:06]} 6. a4 {[%emt 0:00:07]} e5 {[%emt 0:02:40]} 7. Nf3 {[%emt 0:00:05]} Nc6 {[%emt 0:01:07] B90: Sizilianisch (Najdorf-Variante, Abweichungen)} (7... Be7 8. Bg5 Be6 9. Bxf6 Bxf6 10. Nd5 Nd7 11. Bc4 Rc8 12. Qe2 Nb6 13. Nxf6+ Qxf6 14. Bxe6 Qxe6 15. O-O O-O 16. Rfd1 {½-½ (38) Hou,Y (2649)-Carlsen,M (2838) Karlsruhe/Baden-Baden 2017}) 8. Bc4 {[%emt 0:01:06]} Be7 {[%emt 0:01:56]} 9. O-O {[%emt 0:00:43]} Bg4 {[%emt 0:00:46]} 10. Be2 {[%emt 0:08:15]} Qd7 $146 {[%emt 0:01:53]} ({Vorgänger:} 10... O-O 11. h3 Be6 12. Re1 h6 13. Be3 d5 14. exd5 Nxd5 15. Nxd5 Bxd5 16. c4 Be4 17. Qxd8 Raxd8 18. Bb6 Rc8 19. Red1 Bf5 20. Rac1 {0-1 (59) Ruszin,A (2139)-Ezsol,M (2380) Hungary 2016}) 11. Bg5 {[%emt 0:03:29]} O-O {[%emt 0:00:42]} 12. Bxf6 {[%emt 0:02:34]} Bxf6 {[%emt 0:00:08]} 13. Nd5 {[%emt 0:00:54]} Bd8 {[%emt 0:00:07]} 14. c3 {[%emt 0:03:10]} Ne7 {[%emt 0:02:24]} 15. Nxe5 {[%emt 0:04:17]} dxe5 {[%emt 0:02:22]} 16. Bxg4 {[%emt 0:00:25]} Qc6 {[%emt 0:01:08]} 17. Bf3 {[%emt 0:04:39]} Ng6 {[%emt 0:01:32]} 18. Re1 {[%emt 0:04:09]} Bg5 {[%emt 0:02:36]} 19. Qc2 {[%emt 0:03:22]} Nh4 {[%emt 0:01:09]} 20. Be2 {[%emt 0:02:40]} f5 {[%emt 0:04:48]} 21. Qb3 {[%emt 0:04:09]} Kh8 {[%emt 0:00:45]} 22. exf5 {[%emt 0:01:23]} Rad8 {[%emt 0:05:02]} 23. Rad1 {[%emt 0:02:53]} Nxf5 {[%emt 0:02:27]} 24. Qc4 {[%emt 0:05:35]} Qg6 {[%emt 0:03:48]} 25. Bd3 {[%emt 0:04:49]} Nd6 {[%emt 0:07:50]} 26. Qb3 {[%emt 0:09:13]} e4 {[%emt 0:01:29]} 27. Bb1 {[%emt 0:02:59]} Qf7 {[%emt 0:03:15]} 28. Qc2 {[%emt 0:03:39]} Qg6 {[%emt 0:03:01]} 29. Qe2 {[%emt 0:08:38]} Rde8 {[%emt 0:01:58]} 30. Rd4 {[%emt 0:03:01]} Qf7 {[%emt 0:01:25]} 31. Rf1 {[%emt 0:03:03]} Qf5 {[%emt 0:02:56]} 32. Ne3 {[%emt 0:00:58]} Qf6 {[%emt 0:01:41]} 33. Ng4 {[%emt 0:01:01]} Qg6 {[%emt 0:02:44]} 34. Ne3 {[%emt 0:02:09]} Qh6 {[%emt 0:11:07]} 35. Ng4 {[%emt 0:00:35]} Qe6 {[%emt 0:01:28]} 36. Ne3 {[%emt 0:00:24]} Bf6 {[%emt 0:02:43]} 37. Rdd1 {[%emt 0:00:33]} Nf5 {[%emt 0:01:45]} 38. Nxf5 {[%emt 0:00:34]} Qxf5 {[%emt 0:00:05]} 39. f3 {[%emt 0:00:41]} Qc5+ {[%emt 0:01:54]} 40. Qf2 {[%emt 0:01:31]} e3 {[%emt 0:15:32]} 41. Qe2 {[%emt 0:15:34]} Bg5 {[%emt 0:02:14]} 42. Kh1 {[%emt 0:00:00]} Rf6 {[%emt 0:00:00]} 43. Rd7 {[%emt 0:00:00]} Rd6 {[%emt 0:00:00]} 44. Rxd6 {[%emt 0:00:00]} Qxd6 {[%emt 0:00:00]} 45. Be4 {[%emt 0:00:00]} Rd8 {[%emt 0:00:00]} 46. Bxb7 {[%emt 0:00:00]} Qb6 {[%emt 0:00:00]} 47. Qxa6 {[%emt 0:00:00]} Qxb2 {[%emt 0:00:00]} 48. Bd5 {[%emt 0:03:28]} Rxd5 $19 {[%emt 0:00:00]} 49. Qc6 {[%emt 0:00:46]} Rd8 {[%emt 0:00:00]} 50. a5 {[%emt 0:00:16]} e2 {[%emt 0:00:00]} 51. Re1 {[%emt 0:00:36]} Qd2 {[%emt 0:00:00]} 0-1

[Event "GER-ch Youth U12M 2018"]
[Site "Willingen"]
[Date "2018.05.20"]
[Round "2"]
[White "Duduka, Artem"]
[Black "Werner, Denis"]
[Result "1/2-1/2"]
[ECO "B31"]
[WhiteElo "1598"]
[BlackElo "1706"]
[Annotator "NA"]
[PlyCount "139"]
[EventDate "2018.05.19"]
[EventType "swiss"]
[EventCountry "GER"]
[SourceTitle "playchess.com"]
[Source "ChessBase"]
[SourceQuality "1"]
[TimeControl "40/4500+30:900+30"]

1. e4 {[%emt 0:00:00]} c5 {[%emt 0:00:18]} 2. Nf3 {[%emt 0:00:21]} Nc6 {[%emt 0:00:37]} 3. Bb5 {[%emt 0:00:23]} g6 {[%emt 0:00:35]} 4. Bxc6 {[%emt 0:00:07]} bxc6 {[%emt 0:00:38]} 5. O-O {[%emt 0:00:27]} Bg7 {[%emt 0:00:56]} 6. c3 {[%emt 0:00:11]} Nf6 {[%emt 0:01:27]} 7. Re1 {[%emt 0:00:07]} O-O {[%emt 0:00:56]} 8. d4 {[%emt 0:00:10]} cxd4 {[%emt 0:00:55]} 9. cxd4 {[%emt 0:01:38]} d5 {[%emt 0:00:14]} 10. e5 {[%emt 0:00:53]} Ne8 {[%emt 0:00:35]} 11. Nc3 {[%emt 0:00:17]} Nc7 {[%emt 0:00:11]} 12. h3 {[%emt 0:00:34]} Ne6 {[%emt 0:00:54]} 13. Ng5 {[%emt 0:00:38]} Rb8 {[%emt 0:02:15]} 14. Nxe6 {[%emt 0:00:38]} Bxe6 {[%emt 0:00:17]} 15. Na4 {[%emt 0:01:36]} Bc8 {[%emt 0:01:23]} 16. Nc5 {[%emt 0:00:19]} e6 {[%emt 0:00:11]} 17. Qc2 {[%emt 0:01:04]} f6 {[%emt 0:01:26]} 18. f4 {[%emt 0:02:07]} fxe5 {[%emt 0:04:06]} 19. fxe5 {[%emt 0:01:06]} Qh4 {[%emt 0:01:14]} 20. Be3 {[%emt 0:00:59]} Rf7 {[%emt 0:02:48]} 21. Rf1 {[%emt 0:01:05]} Bf8 {[%emt 0:00:20]} 22. Rxf7 {[%emt 0:01:17]} Kxf7 {[%emt 0:00:06]} 23. Rf1+ {[%emt 0:00:04]} Kg8 {[%emt 0:00:11]} 24. b3 {[%emt 0:00:20]} Be7 {[%emt 0:07:45]} 25. Kh2 {[%emt 0:02:55]} Bxc5 {[%emt 0:02:05]} 26. Qxc5 {[%emt 0:00:24]} Ba6 {[%emt 0:00:25]} 27. Qxa7 {[%emt 0:01:26]} Bxf1 {[%emt 0:00:28]} 28. Qxb8+ {[%emt 0:00:14]} Kg7 {[%emt 0:00:14]} 29. Qc7+ {[%emt 0:00:30]} Kg8 {[%emt 0:00:29]} 30. Qc8+ {[%emt 0:00:11]} Kf7 {[%emt 0:00:36]} 31. Qd7+ {[%emt 0:00:28]} Qe7 {[%emt 0:00:51]} 32. Qxc6 {[%emt 0:01:15]} Qh4 {[%emt 0:00:20]} 33. Qd7+ {[%emt 0:00:07]} Qe7 {[%emt 0:00:05]} 34. Qxe7+ {[%emt 0:00:05]} Kxe7 {[%emt 0:00:04]} 35. g3 {[%emt 0:00:15]} Bd3 {[%emt 0:00:43]} 36. b4 {[%emt 0:00:42]} Kd7 {[%emt 0:00:33]} 37. a4 {[%emt 0:00:05]} Kc6 {[%emt 0:00:05]} 38. Bd2 {[%emt 0:00:17]} Bc2 {[%emt 0:00:10]} 39. a5 {[%emt 0:00:12]} Bd3 {[%emt 0:00:33]} 40. Kg2 {[%emt 0:00:14]} Kd7 {[%emt 0:15:28]} 41. Kf3 {[%emt 0:15:14]} Kc6 {[%emt 0:00:50]} 42. Bh6 {[%emt 0:03:33]} Kb5 {[%emt 0:00:17]} 43. Bf8 {[%emt 0:00:06]} h5 {[%emt 0:00:20]} 44. h4 {[%emt 0:00:21]} Kc6 {[%emt 0:00:27]} 45. Kf4 {[%emt 0:00:25]} Kd7 {[%emt 0:00:18]} 46. Kg5 {[%emt 0:00:07]} Ke8 {[%emt 0:00:07]} 47. Bc5 {[%emt 0:01:03]} Kf7 {[%emt 0:00:06]} 48. Kh6 {[%emt 0:00:30]} Bc4 {[%emt 0:00:18]} 49. Kg5 {[%emt 0:00:30]} Bb5 {[%emt 0:00:08]} 50. Kf4 {[%emt 0:00:09]} Ke8 {[%emt 0:00:11]} 51. Ke3 {[%emt 0:00:50]} Kd7 {[%emt 0:00:09]} 52. Kd2 {[%emt 0:00:13]} Kc6 {[%emt 0:00:20]} 53. Kc3 {[%emt 0:00:08]} Kb7 {[%emt 0:00:43]} 54. Kb3 {[%emt 0:00:59]} Kc6 {[%emt 0:00:11]} 55. Kc3 {[%emt 0:01:02]} Kb7 {[%emt 0:00:07]} 56. Kd2 {[%emt 0:00:04]} Kc6 {[%emt 0:00:04]} 57. Ke3 {[%emt 0:00:08]} Kd7 {[%emt 0:00:05]} 58. Kf4 {[%emt 0:00:05]} Ke8 {[%emt 0:00:05]} 59. g4 {[%emt 0:00:17]} hxg4 {[%emt 0:00:13]} 60. Kxg4 {[%emt 0:00:08]} Kf7 {[%emt 0:00:22]} 61. Kg5 {[%emt 0:01:29]} Bc4 {[%emt 0:00:11]} 62. h5 {[%emt 0:02:18]} gxh5 {[%emt 0:00:06]} 63. Kxh5 {[%emt 0:00:05]} Be2+ {[%emt 0:00:21]} 64. Kg5 {[%emt 0:00:11]} Bb5 {[%emt 0:00:05]} 65. Kf4 {[%emt 0:01:00]} Ke8 {[%emt 0:00:07]} 66. Ke3 {[%emt 0:00:09]} Kd7 {[%emt 0:00:05]} 67. Kd2 {[%emt 0:00:04]} Kc6 {[%emt 0:00:04]} 68. Kc3 {[%emt 0:00:04]} Kb7 {[%emt 0:00:06]} 69. Kb3 {[%emt 0:00:12]} Kc6 {[%emt 0:00:04]} 70. Ka3 {[%emt 0:01:45]} 1/2-1/2